[Event "European Womens-ch 2025"]
[Site "Rhodes"]
[Date "2025.03.31"]
[Round "1.1"]
[White "Batsiashvili, Nino"]
[Black "Schloffer, Jasmin-Denise"]
[Result "1-0"]
[Annotator "TA"]
[ECO "A18"]
[WhiteElo "2473"]
[BlackElo "2188"]
[PlyCount "89"]
[EventDate "2025.03.29"]
[EventType "swiss"]
[EventCountry "GRE"]
[SourceTitle "playchess.com"]
[Source "ChessBase"]
[SourceQuality "1"]
[TimeControl "40/5400+30:1800+30"]

{[%evp 10,89,46,17,10,10,6,0,0,0,12,18,29,31,86,4,57,33,133,69,78,67,96,0,0,0,0,0,0,0,0,0,0,0,39,43,48,50,75,94,150,149,180,145,142,160,154,158,170,99,200,225,236,213,208,208,260,267,277,273,244,229,236,234,281,283,344,333,337,330,336,325,1426,1309,5389,5381,5365,5365,29984,29985,29996,389]} 1. c4 {[%emt 0:00:01]} Nf6 {[%emt 0:00:07]} 2. Nc3 {[%emt 0:00:06]} e6 {[%emt 0:00:06]} 3. e4 {[%emt 0:00:06]} d5 {[%emt 0:00:07]} 4. cxd5 {[%emt 0:00:05]} exd5 {[%emt 0:00:06]} 5. e5 {[%emt 0:00:04]} Ne4 {[%emt 0:00:17]} 6. Nf3 {[%emt 0:00:09]} Bf5 {[%emt 0:02:39] A18: English Opening: Flohr-Mikenas System (1 c4 Nf6 2 Nc3 e6 3 e4).} 7. d3 {[%emt 0:00:16]} Nxc3 {[%emt 0:06:38]} 8. bxc3 {[%emt 0:00:01]} c5 {[%emt 0:00:21] The position is equal.} 9. d4 {[%emt 0:00:05]} Nc6 {[%emt 0:04:05]} 10. Bd3 {[%emt 0:02:07]} Bg4 {[%emt 0:03:26]} 11. O-O {[%emt 0:05:20]} Be7 {[%emt 0:04:46]} (11... c4 $14 12. Bc2 b5) 12. Be3 {[%emt 0:02:25]} (12. h3 $16 Bh5 13. Be3) 12... O-O {[%emt 0:02:49]} (12... c4 $11 13. Bc2 Qd7) 13. Qb1 $146 {[%emt 0:06:33]} (13. dxc5 Nxe5 14. Be2 Nc4 $11) (13. h3 Bh5 14. Qb1 Bxf3 15. gxf3 g6 16. f4 cxd4 17. cxd4 f5 18. a3 Qd7 19. Kh2 Rac8 20. Qa2 {0-1 Nemcova,K (2325)-Abrahamyan,T (2294) American Cup Elim (Women) rapid 2023 (1.1)}) 13... Qd7 {[%emt 0:19:06]} ({Black should try} 13... g6 $14) 14. Bxh7+ {[%emt 0:08:24]} (14. h3 Bxf3 15. Bxh7+ (15. Bf5 Qc7 $11) 15... Kh8 16. Bf5 (16. gxf3 $2 g6 $19)) 14... Kh8 $16 {[%emt 0:00:05]} 15. Bd3 {[%emt 0:00:13]} (15. dxc5 g6 16. Bxg6 (16. e6 $2 Qxe6 17. Ng5 Bxg5 $19) 16... Rg8 $17 (16... fxg6 17. Qxg6 Qf5 18. Qxf5 $15)) 15... f5 {[%emt 0:08:34][%cal Bf7f5,Bf5f4][%mdl 32]} 16. Ng5 {[%emt 0:08:58]} (16. dxc5 Bxf3 17. gxf3 Nxe5 $11) (16. Qd1 $16) 16... f4 $11 {[%emt 0:07:56][%cal Of4e3]} 17. e6 $1 {[%emt 0:18:27]} Bxe6 {[%emt 0:03:42]} 18. Nxe6 {[%emt 0:00:27]} Qxe6 {[%emt 0:00:04]} 19. Bd2 {[%emt 0:01:09]} cxd4 {[%emt 0:05:41]} 20. Re1 {[%emt 0:01:44] Prevents f3.} Qf6 {[%emt 0:06:32]} 21. cxd4 {[%emt 0:08:48]} (21. Qxb7 $2 dxc3 22. Bxc3 Qxc3 $19) 21... Rab8 {[%emt 0:06:37]} 22. Bc3 {[%emt 0:03:13]} Qg5 {[%emt 0:05:44]} 23. Qd1 {[%emt 0:06:24]} Bf6 {[%emt 0:03:11]} 24. Bf1 {[%emt 0:16:01][%cal Bd3f1,Bf1e2,Be2f3][%mdl 32]} b5 {[%emt 0:04:47]} (24... Kg8 $142) 25. Rc1 $16 {[%emt 0:01:29]} a6 {[%emt 0:02:20]} 26. Qd3 {[%emt 0:00:17]} Kg8 {[%emt 0:01:39]} 27. Be2 {[%emt 0:03:44]} Rfe8 {[%emt 0:01:29]} 28. Bf3 {[%emt 0:00:16] Prevents Re4.} Ne7 {[%emt 0:00:35]} 29. Re6 {[%emt 0:02:03]} ({White should play} 29. Ba5 $18) 29... b4 {[%emt 0:00:42]} (29... Ng6 $16 30. Rd6 (30. Rxa6 Nh4 $16) 30... Rbd8 31. Rxa6 (31. Bxd5+ Kh8 $16) 31... Nh4) 30. Bd2 $18 {[%emt 0:01:02] This pair of bishops is nice.} a5 {[%emt 0:00:34]} 31. h3 {[%emt 0:01:11]} Red8 {[%emt 0:00:37]} 32. Bg4 {[%emt 0:00:21]} Ng6 {[%emt 0:00:24]} 33. Ra6 {[%emt 0:00:52] Black is weak on the light squares} Ra8 {[%emt 0:00:30]} 34. Rxa8 {[%emt 0:01:02]} Rxa8 {[%emt 0:00:04]} 35. Rc5 {[%emt 0:00:17] [#] and Be6+ would now be decisive} Ne7 {[%emt 0:01:03]} 36. g3 {[%emt 0:03:00]} Qh6 {[%emt 0:00:19]} 37. Bxf4 {[%emt 0:00:09]} ({Resist} 37. gxf4 $6 Qh7 38. f5 Kh8 $18) 37... Bg5 {[%emt 0:00:04]} 38. Bxg5 {[%emt 0:00:49]} (38. Be5 a4 39. Rc2 Kh8 $16) 38... Qxg5 {[%emt 0:00:05]} 39. Be6+ {[%emt 0:00:11]} Kh8 {[%emt 0:00:30]} 40. Qf3 {[%emt 0:00:00][%cal Re6d5]} a4 $2 {[%emt 0:00:00]} (40... Qf6 41. Qh5+ (41. Bxd5 Nxd5 42. Qh5+ Qh6 $18) 41... Qh6) 41. Bxd5 {[%emt 0:02:19]} Nxd5 {[%emt 0:01:47]} 42. Rxd5 {[%emt 0:00:07]} Qc1+ {[%emt 0:01:12]} 43. Kg2 {[%emt 0:06:20] [#] Rh5+ would kill now.} Rc8 {[%emt 0:00:39]} 44. Rh5+ {[%emt 0:00:14]} Kg8 {[%emt 0:00:08]} 45. Qd5+ {[%emt 0:00:09] Weighted Error Value: White=0.14 (very precise) /Black=0.59  Mistake:       	White=4     	Black=6      Inaccurate:     	---       	Black=3      OK:         	White=14    	Black=10     Best:        	White=1     	---        Strong:       	White=1     	---} 1-0

[Event "European Womens-ch 2025"]
[Site "Rhodes"]
[Date "2025.03.31"]
[Round "1.2"]
[White "Kirtadze, Anastasia"]
[Black "Injac, Teodora"]
[Result "1-0"]
[Annotator "TA"]
[ECO "C71"]
[WhiteElo "2180"]
[BlackElo "2454"]
[PlyCount "105"]
[EventDate "2025.03.29"]
[EventType "swiss"]
[EventCountry "GRE"]
[SourceTitle "playchess.com"]
[Source "ChessBase"]
[SourceQuality "1"]
[TimeControl "40/5400+30:1800+30"]

{[%evp 10,104,0,11,5,10,11,0,14,14,12,4,12,-16,11,-39,-9,-58,-59,-60,-57,-60,-30,-37,-33,-87,-27,-46,-15,-56,-23,-24,-23,-59,-52,-56,18,22,29,29,22,22,29,24,20,27,29,29,31,29,51,24,10,0,0,-758,-696,-29972,-29967,-3072,-2633,-29997,-29998,-29998,630,630,636,636,636,614,597,-5110,592,577,582,500,562,363,320,226,213,213,213,208,537,493,407,362,7022,6087,29966,29969,29968,1121,29970,29964,29981]} 1. e4 {[%emt 0:00:03]} e5 {[%emt 0:00:37]} 2. Nf3 {[%emt 0:00:07]} Nc6 {[%emt 0:00:09]} 3. Bb5 {[%emt 0:00:08]} a6 {[%emt 0:00:21]} 4. Ba4 {[%emt 0:00:06]} d6 {[%emt 0:00:04]} 5. c4 {[%emt 0:00:40]} Bg4 {[%emt 0:03:53]} 6. h3 {[%emt 0:10:36]} Bxf3 {[%emt 0:00:45] C71: Ruy Lopez: Deferred Steinitz Variation, sidelines.} 7. Bxc6+ {[%emt 0:04:02]} bxc6 {[%emt 0:00:04]} 8. Qxf3 {[%emt 0:00:05]} Nf6 {[%emt 0:09:55][%cal Bg8f6,Bf6d7,Bd7c5][%mdl 32] The position is equal.} 9. Nc3 {[%emt 0:03:00]} Nd7 {[%emt 0:01:31]} 10. d3 {[%emt 0:02:24]} Nc5 {[%emt 0:02:31]} 11. Bd2 $146 {[%emt 0:09:57]} (11. O-O Be7 12. Ne2 O-O 13. d4 exd4 14. Nxd4 Qe8 15. Be3 Bf6 16. Rad1 Nxe4 17. Rfe1 Bxd4 18. Bxd4 {1-0 Adams,M (2677)-Alekseenko,K (2679) Salamanca Masters 7th rapid 2024 (7)}) 11... Be7 {[%emt 0:05:57]} 12. O-O-O {[%emt 0:04:35]} (12. b4 $11 Ne6 13. O-O) 12... O-O {[%emt 0:03:05]} 13. g4 {[%emt 0:03:49]} (13. h4 $11 {was preferable.}) 13... Bh4 $15 {[%emt 0:06:41]} 14. Be3 {[%emt 0:07:43]} Ne6 {[%emt 0:00:36]} 15. Ne2 {[%emt 0:01:43]} c5 {[%emt 0:02:53]} 16. Qg2 {[%emt 0:03:03]} Rb8 {[%emt 0:03:30]} 17. Ng3 {[%emt 0:05:24]} (17. Rd2 $15) 17... Bxg3 {[%emt 0:01:41]} (17... g6 $17) 18. fxg3 $11 {[%emt 0:01:11]} c6 {[%emt 0:05:21]} 19. Bd2 {[%emt 0:09:11]} a5 {[%emt 0:03:22]} 20. h4 {[%emt 0:01:23]} a4 {[%emt 0:00:37]} 21. Bc3 {[%emt 0:01:34]} Rb7 {[%emt 0:03:39]} 22. Rhf1 {[%emt 0:02:56]} Qb6 {[%emt 0:01:21]} ({Better is} 22... f6 $15) 23. g5 {[%emt 0:02:52]} Rfb8 {[%emt 0:02:03]} 24. Rf2 {[%emt 0:02:44]} Nd4 {[%emt 0:08:59]} 25. Bxd4 {[%emt 0:03:30] Successful Defense White} cxd4 {[%emt 0:01:21]} 26. Rc2 {[%emt 0:02:30]} Qd8 {[%emt 0:12:34]} 27. Rf1 {[%emt 0:02:33]} Qa5 {[%emt 0:05:32]} 28. h5 {[%emt 0:07:22]} Qd8 {[%emt 0:07:13]} 29. Rf5 {[%emt 0:01:21]} Qd7 {[%emt 0:02:12]} 30. g4 {[%emt 0:01:45]} Rb4 {[%emt 0:01:45]} 31. Rcf2 {[%emt 0:03:53]} Qb7 {[%emt 0:04:28][%cal Oa4a3] ...a3! is the strong threat.} 32. h6 $2 {[%emt 0:03:34][%mdl 8192] [#]} (32. Rxf7 $11 Qxf7 33. Rxf7 Kxf7 34. g6+ hxg6 35. Qf2+ Ke7 36. Qh4+ (36. hxg6 Rf8 $15) 36... Ke8 37. hxg6) 32... a3 $1 $19 {[%emt 0:00:14][%cal Ra3b2][%mdl 512]} 33. Rxf7 {[%emt 0:00:37] Qf3 would now be deadly.} (33. g6 axb2+) 33... axb2+ {[%emt 0:01:10]} 34. Kb1 {[%emt 0:00:01]} Qa6 {[%emt 0:00:39][%cal Oa6a2] ( -> ...Qxa2+!)} (34... Qxf7 35. Rxf7 Kxf7 36. hxg7 $19) 35. Qf1 {[%emt 0:00:47] [#]} Qxa2+ $3 {[%emt 0:00:26][%mdl 512]} 36. Kxa2 {[%emt 0:00:02]} Ra4+ $4 {[%emt 0:00:01][%mdl 8192]} (36... b1=Q+ 37. Qxb1 Ra4#) 37. Kb1 $18 {[%emt 0:00:02]} Ra1+ {[%emt 0:00:11]} 38. Kc2 {[%emt 0:00:08]} b1=Q+ {[%emt 0:00:27]} 39. Qxb1 {[%emt 0:00:09]} Raxb1 {[%emt 0:00:02][%csl Gb1][%cal Rb8b2]} 40. Rxg7+ {[%emt 0:00:00][%mdl 4096] Endgame KRR-KRR. White is a pawn up.} Kh8 {[%emt 0:00:00][%csl Gb1][%cal Rb8b2] [#]} 41. Rf8+ $3 {[%emt 0:00:47][%mdl 512]} Rxf8 {[%emt 0:00:03]} 42. Kxb1 {[%emt 0:00:01] KR-KR. White is a pawn up.} Rf4 {[%emt 0:04:33]} 43. Re7 {[%emt 0:26:39] Re8+ would kill now.} Kg8 {[%emt 0:00:49] [#]} 44. c5 $1 {[%emt 0:00:49][%mdl 512]} dxc5 {[%emt 0:00:36]} 45. Rxe5 {[%emt 0:00:03]} Rxg4 {[%emt 0:24:50]} 46. Rxc5 {[%emt 0:00:22]} Kf7 $2 {[%emt 0:00:49] [#]} (46... Rg2 {is more resistant.} 47. Rxc6 Rxg5) 47. Kc2 $1 {[%emt 0:03:07]} ({Weaker is} 47. Rxc6 Rxg5 48. Rd6 Ke7 $16) 47... Rg3 {[%emt 0:00:54]} 48. Rxc6 {[%emt 0:01:42]} Ke7 $2 {[%emt 0:00:01]} (48... Rxg5 49. Kb3 Rg1 50. Rc7+ Kg8) 49. Rc7+ {[%emt 0:02:06]} Kd6 {[%emt 0:00:22]} 50. Rxh7 {[%emt 0:00:22]} Rxg5 {[%emt 0:00:02]} 51. Kb3 {[%emt 0:00:34]} (51. Rh8 $142 Rg2+ 52. Kb3 Rd2 53. Kc4 Rc2+ 54. Kxd4 Rc7 55. h7 Kc6 56. Ke3) 51... Rc5 {[%emt 0:00:59]} 52. Rh8 {[%emt 0:00:48]} Rh5 {[%emt 0:03:00]} 53. h7 {[%emt 0:00:17] Quite a comeback for White.   Weighted Error Value: White=0.66/Black=0.57  Loses game:     	White=1     	---        Mistake:       	White=3     	Black=4      Inaccurate:     	White=6     	Black=6      OK:         	White=12    	Black=10     Best:        	White=3     	Black=2      Strong:       	White=1     	---        Brilliant:      	White=1     	Black=1} 1-0

[Event "European Womens-ch 2025"]
[Site "Rhodes"]
[Date "2025.03.31"]
[Round "1.3"]
[White "Arabidze, Meri"]
[Black "Terbe, Zsuzsanna"]
[Result "1-0"]
[Annotator "TA"]
[ECO "A11"]
[WhiteElo "2447"]
[BlackElo "2179"]
[PlyCount "45"]
[EventDate "2025.03.29"]
[EventType "swiss"]
[EventCountry "GRE"]
[SourceTitle "playchess.com"]
[Source "ChessBase"]
[SourceQuality "1"]
[TimeControl "40/5400+30:1800+30"]

{[%evp 9,45,8,6,-10,-12,-12,-8,-8,28,8,95,58,62,64,76,68,85,54,138,136,182,182,208,211,252,229,247,218,268,256,454,447,429,446,610,589,726,650]} 1. Nf3 {[%emt 0:00:05]} d5 {[%emt 0:00:10]} 2. c4 {[%emt 0:00:12]} c6 {[%emt 0:00:07]} 3. g3 {[%emt 0:00:10]} Bg4 {[%emt 0:00:28]} 4. Ne5 {[%emt 0:00:48]} Be6 {[%emt 0:00:12]} 5. d4 {[%emt 0:01:39]} Nd7 {[%emt 0:00:39]} 6. cxd5 {[%emt 0:00:52] A11: English Opening: 1...c6.} Bxd5 {[%emt 0:02:15]} 7. f3 {[%emt 0:00:10]} Nxe5 {[%emt 0:06:15]} 8. dxe5 {[%emt 0:00:03] The position is equal.} Qc7 $146 {[%emt 0:03:24]} (8... g6 9. e4 Be6 10. Qxd8+ Rxd8 11. Be3 Bh6 12. f4 f6 13. exf6 Nxf6 14. Nc3 b6 {½-½ Pantsulaia,L (2564)-Andreikin,D (2729) Aimchess Rapid Div 3 L 2023 (5.3)}) 9. Qd4 {[%emt 0:14:35]} e6 {[%emt 0:08:22]} (9... Be6 $11 {keeps the balance.}) 10. Nc3 {[%emt 0:11:16]} c5 {[%emt 0:22:06]} 11. Nxd5 {[%emt 0:11:06]} Qd7 {[%emt 0:03:36]} 12. Qc3 {[%emt 0:04:29]} exd5 {[%emt 0:00:51]} 13. Bg2 {[%emt 0:01:07]} f6 {[%emt 0:02:37]} (13... c4 $14) 14. f4 $16 {[%emt 0:02:22][%cal Bf3f4,Bf4e5][%mdl 32]} Be7 {[%emt 0:03:22]} (14... Qe6 $16 15. O-O O-O-O) 15. O-O $18 {[%emt 0:04:08]} fxe5 {[%emt 0:03:09]} 16. fxe5 {[%emt 0:00:43][%cal Oe5e6] aiming for e6!.} Qe6 {[%emt 0:08:29]} 17. b4 {[%emt 0:07:22]} cxb4 {[%emt 0:08:48]} 18. Qd4 {[%emt 0:01:42]} Rd8 {[%emt 0:01:25]} 19. Qxa7 {[%emt 0:09:33]} Qxe5 $2 {[%emt 0:03:46] [#]} (19... Rd7 {was called for.} 20. Rb1 Qxe5) 20. Qa4+ $1 {[%emt 0:06:50] White is clearly winning.} Rd7 {[%emt 0:00:45] [#]} 21. Bh3 $1 {[%emt 0:00:09][%csl Gh3][%cal Ra4d7] This pair of bishops is nice.} Bc5+ {[%emt 0:05:06]} 22. Kh1 {[%emt 0:10:54][%csl Gh3][%cal Ra4d7]} Qe7 {[%emt 0:06:50] [#]} 23. Bg5 $1 {[%emt 0:04:40][%mdl 512] Inhibits Nf6.   Weighted Error Value: White=0.09 (flawless) /Black=0.61  Mistake:       	---       	Black=4      Inaccurate:     	White=2     	Black=2      OK:         	White=6     	Black=5      Best:        	White=1     	---        Strong:       	White=2     	---} 1-0

[Event "European Womens-ch 2025"]
[Site "Rhodes"]
[Date "2025.03.31"]
[Round "1.4"]
[White "Rodshtein, Tereza"]
[Black "Tsolakidou, Stavroula"]
[Result "1/2-1/2"]
[Annotator "TA"]
[ECO "C01"]
[WhiteElo "2171"]
[BlackElo "2445"]
[PlyCount "64"]
[EventDate "2025.03.29"]
[EventType "swiss"]
[EventCountry "GRE"]
[SourceTitle "playchess.com"]
[Source "ChessBase"]
[SourceQuality "1"]
[TimeControl "40/5400+30:1800+30"]

{[%evp 12,64,23,13,35,0,0,-10,30,2,5,4,12,10,42,31,64,42,53,47,76,76,77,45,49,47,49,39,45,45,41,38,43,35,66,50,54,29,30,30,37,36,42,42,44,2,2,0,20,0,0,0,0,0,-1]} 1. e4 {[%emt 0:00:03]} e6 {[%emt 0:00:16]} 2. d4 {[%emt 0:00:22]} d5 {[%emt 0:00:09]} 3. exd5 {[%emt 0:00:23]} exd5 {[%emt 0:00:07]} 4. Nf3 {[%emt 0:00:06]} Bd6 {[%emt 0:06:37]} 5. Bd3 {[%emt 0:00:35]} Nc6 {[%emt 0:00:53]} 6. c3 {[%emt 0:01:25]} Nge7 {[%emt 0:02:47]} 7. O-O {[%emt 0:03:58][%cal Bh1f1,Bf1e1,Be1e2,Be2e5][%mdl 32]} O-O {[%emt 0:04:12] C01: French: Exchange Variation.} 8. Qc2 {[%emt 0:13:18]} h6 {[%emt 0:05:35][%cal Oe7g6]} 9. h3 {[%emt 0:05:54]} Be6 {[%emt 0:02:54][%cal Oe7g6]} 10. Re1 {[%emt 0:01:44]} Qd7 {[%emt 0:03:45]} 11. Nbd2 {[%emt 0:01:59]} Rae8 {[%emt 0:07:36]} 12. Nf1 {[%emt 0:02:41]} f5 $146 {[%emt 0:17:30]} (12... Bf5 13. Bd2 Bxd3 14. Qxd3 Ng6 15. Rad1 a6 16. b3 Nd8 17. Ne3 c6 18. Ng4 Ne6 {½-½ Doan,P (1467)-Nguyen,X Ho Chi Minh City HD Bank op-B 6th 2016 (5)}) 13. Bd2 {[%emt 0:06:35]} Ng6 {[%emt 0:06:38]} 14. b4 {[%emt 0:19:04]} Qf7 {[%emt 0:03:42]} 15. Re2 {[%emt 0:03:09]} Nce7 {[%emt 0:02:58]} 16. Rae1 {[%emt 0:01:08] White is more active.} Nc8 {[%emt 0:02:03]} 17. N1h2 {[%emt 0:09:28]} Bxh2+ {[%emt 0:17:48]} 18. Kxh2 {[%emt 0:00:29]} Nd6 {[%emt 0:00:11]} 19. Ne5 {[%emt 0:02:10] Strong Square White (e5)} Nxe5 {[%emt 0:00:17]} 20. Rxe5 {[%emt 0:00:46]} Nc4 {[%emt 0:00:41]} 21. Bxc4 {[%emt 0:06:02]} dxc4 {[%emt 0:00:06]} 22. Qc1 {[%emt 0:11:30][%cal Od2h6]} f4 {[%emt 0:08:14]} 23. f3 {[%emt 0:00:32][%cal Od2f4]} g5 $1 {[%emt 0:00:25]} 24. R1e2 {[%emt 0:01:25]} Bd7 {[%emt 0:01:41]} 25. Qe1 {[%emt 0:00:20]} Rxe5 {[%emt 0:01:07]} 26. Rxe5 {[%emt 0:00:07]} Re8 {[%emt 0:00:58]} 27. h4 {[%emt 0:02:59]} Kf8 {[%emt 0:00:56]} 28. hxg5 {[%emt 0:04:03]} hxg5 {[%emt 0:00:07] The position is equal.} ({But not} 28... Qh5+ $6 29. Kg1 $18) 29. Kg1 {[%emt 0:00:04]} Bc6 {[%emt 0:01:12]} 30. Rxe8+ {[%emt 0:00:43]} Qxe8 {[%emt 0:00:06]} 31. Qxe8+ {[%emt 0:00:27]} Kxe8 {[%emt 0:00:05]} 32. Kf2 {[%emt 0:00:38]} Kf7 {[%emt 0:01:33] Weighted Error Value: White=0.10 (very precise) /Black=0.10 (very precise)   Inaccurate:     	White=4     	Black=5      OK:         	White=9     	Black=9      Strong:       	---       	Black=1} 1/2-1/2

[Event "European Womens-ch 2025"]
[Site "Rhodes"]
[Date "2025.03.31"]
[Round "1.5"]
[White "Wagner, Dinara"]
[Black "Bochnickova, Simona"]
[Result "1/2-1/2"]
[Annotator "RC"]
[ECO "D36"]
[WhiteElo "2440"]
[BlackElo "2167"]
[PlyCount "130"]
[EventDate "2025.03.29"]
[EventType "swiss"]
[EventCountry "GRE"]
[SourceTitle "playchess.com"]
[Source "ChessBase"]
[SourceQuality "1"]
[TimeControl "40/5400+30:1800+30"]

1. d4 {[%emt 0:00:02]} d5 {[%emt 0:00:04]} 2. c4 {[%emt 0:00:04]} e6 {[%emt 0:00:03]} 3. Nc3 {[%emt 0:00:04]} Nf6 {[%emt 0:00:04]} 4. cxd5 {[%emt 0:00:05]} exd5 {[%emt 0:00:05]} 5. Bg5 {[%emt 0:00:05]} Be7 {[%emt 0:00:10]} 6. e3 {[%emt 0:00:08]} O-O {[%emt 0:00:21]} 7. Bd3 {[%emt 0:00:10]} c6 {[%emt 0:00:22]} 8. Nge2 {[%emt 0:00:48]} h6 {[%emt 0:03:52]} 9. Bh4 {[%emt 0:02:45]} Nbd7 {[%emt 0:04:25]} 10. Qc2 {[%emt 0:01:26]} Re8 {[%emt 0:00:08]} 11. O-O {[%emt 0:00:05]} Ne4 {[%emt 0:00:40]} 12. Bxe7 {[%emt 0:06:14]} Qxe7 {[%emt 0:00:06]} 13. Bxe4 {[%emt 0:00:25]} dxe4 {[%emt 0:00:07]} 14. d5 {[%emt 0:00:01]} Nc5 {[%emt 0:09:25]} 15. Rad1 {[%emt 0:14:11]} Bg4 {[%emt 0:16:54]} 16. dxc6 {[%emt 0:32:48]} bxc6 {[%emt 0:01:37]} 17. Rd4 {[%emt 0:00:04]} a5 {[%emt 0:12:22]} 18. Ng3 {[%emt 0:03:44]} Rad8 {[%emt 0:03:08]} 19. h3 {[%emt 0:00:29]} Bc8 {[%emt 0:00:58]} 20. Rfd1 {[%emt 0:04:16]} Rxd4 {[%emt 0:17:19]} 21. Rxd4 {[%emt 0:03:57]} f5 {[%emt 0:00:08]} 22. Nce2 {[%emt 0:00:09]} Qe5 {[%emt 0:06:37]} 23. Qc3 {[%emt 0:06:59]} a4 {[%emt 0:08:12]} 24. Rc4 {[%emt 0:04:53]} Qxc3 {[%emt 0:00:13]} 25. Nxc3 {[%emt 0:00:03]} Nd3 {[%emt 0:02:26]} 26. Nxa4 {[%emt 0:00:06]} Ba6 {[%emt 0:00:36]} 27. Rc3 {[%emt 0:00:36]} Bb5 {[%emt 0:03:29]} 28. Nc5 {[%emt 0:00:57]} Re5 {[%emt 0:03:16]} 29. Nd7 {[%emt 0:02:38]} Re7 {[%emt 0:01:59]} 30. Nb6 {[%emt 0:04:11]} Nxb2 {[%emt 0:01:09]} 31. Nxf5 {[%emt 0:00:34]} Rf7 {[%emt 0:01:14]} 32. g4 {[%emt 0:05:48]} Ra7 {[%emt 0:03:25]} 33. a3 {[%emt 0:00:13]} Rb7 {[%emt 0:01:19]} 34. Nc8 {[%emt 0:00:16]} Rd7 {[%emt 0:00:38]} 35. Nd4 {[%emt 0:05:09]} Nc4 {[%emt 0:00:38]} 36. a4 {[%emt 0:02:23]} Ba6 {[%emt 0:00:04]} 37. a5 {[%emt 0:01:34]} c5 {[%emt 0:00:24]} 38. Nf5 {[%emt 0:00:34]} Rd1+ {[%emt 0:00:41]} 39. Kg2 {[%emt 0:00:12]} Nd2 {[%emt 0:00:16]} 40. Ncd6 {[%emt 0:00:00]} Nf3 {[%emt 0:00:00]} 41. Nxe4 {[%emt 0:04:00]} Be2 {[%emt 0:03:40]} 42. Nxh6+ {[%emt 0:04:32]} Kh7 {[%emt 0:02:09]} 43. Kg3 {[%emt 0:00:07]} g5 {[%emt 0:00:06]} 44. Nxg5+ {[%emt 0:00:26]} Nxg5 {[%emt 0:00:06]} 45. Ra3 {[%emt 0:11:46]} Kxh6 {[%emt 0:04:35]} 46. a6 {[%emt 0:00:37]} Bf3 {[%emt 0:07:16]} 47. a7 {[%emt 0:02:30]} Ba8 {[%emt 0:00:04]} 48. Ra6+ {[%emt 0:01:28]} Kg7 {[%emt 0:00:10]} 49. Ra5 {[%emt 0:01:08]} Ne4+ {[%emt 0:01:53]} 50. Kh4 {[%emt 0:00:55]} Rd8 {[%emt 0:04:05]} 51. g5 {[%emt 0:00:22]} Nxf2 {[%emt 0:00:58]} 52. Rb5 {[%emt 0:01:27]} c4 {[%emt 0:03:24]} 53. Rb4 {[%emt 0:04:51]} c3 {[%emt 0:01:11]} 54. Rc4 {[%emt 0:00:04]} Ne4 {[%emt 0:00:44]} 55. Rc7+ {[%emt 0:00:09]} Kg8 {[%emt 0:03:36]} 56. Kg4 {[%emt 0:00:03]} Bd5 {[%emt 0:01:36]} 57. h4 {[%emt 0:00:11]} Nf2+ {[%emt 0:01:24]} 58. Kf4 {[%emt 0:00:56]} Nd1 {[%emt 0:00:50]} 59. h5 {[%emt 0:00:19]} Re8 {[%emt 0:00:17]} 60. g6 {[%emt 0:00:42]} Be4 {[%emt 0:00:29]} 61. Kg5 {[%emt 0:01:01]} c2 {[%emt 0:02:11]} 62. h6 {[%emt 0:00:12]} Nxe3 {[%emt 0:00:19]} 63. Rg7+ {[%emt 0:01:01]} Kf8 {[%emt 0:00:30]} 64. Rf7+ {[%emt 0:00:06]} Kg8 {[%emt 0:00:04]} 65. Rg7+ {[%emt 0:00:13]} Kf8 {[%emt 0:02:29]} 1/2-1/2

[Event "European Womens-ch 2025"]
[Site "Rhodes"]
[Date "2025.03.31"]
[Round "1.6"]
[White "Abdinova, Narmin"]
[Black "Javakhishvili, Lela"]
[Result "1/2-1/2"]
[Annotator "RC"]
[ECO "E04"]
[WhiteElo "2165"]
[BlackElo "2429"]
[PlyCount "66"]
[EventDate "2025.03.29"]
[EventType "swiss"]
[EventCountry "GRE"]
[SourceTitle "playchess.com"]
[Source "ChessBase"]
[SourceQuality "1"]
[TimeControl "40/5400+30:1800+30"]

1. d4 {[%emt 0:00:10]} Nf6 {[%emt 0:00:07]} 2. c4 {[%emt 0:00:24]} e6 {[%emt 0:00:08]} 3. g3 {[%emt 0:00:05]} d5 {[%emt 0:00:19]} 4. Bg2 {[%emt 0:00:30]} dxc4 {[%emt 0:00:44]} 5. Nf3 {[%emt 0:00:08]} c6 {[%emt 0:00:22]} 6. O-O {[%emt 0:00:22]} b5 {[%emt 0:00:16]} 7. Ne5 {[%emt 0:00:18]} Bb7 {[%emt 0:00:18]} 8. b3 {[%emt 0:03:31]} cxb3 {[%emt 0:00:09]} 9. a4 {[%emt 0:03:16]} b4 {[%emt 0:06:42]} 10. a5 {[%emt 0:08:16]} Nd5 {[%emt 0:08:44]} 11. Qxb3 {[%emt 0:02:16]} Be7 {[%emt 0:03:55]} 12. e4 {[%emt 0:27:12]} Nc7 {[%emt 0:03:00]} 13. Be3 {[%emt 0:00:15]} O-O {[%emt 0:01:06]} 14. Rc1 {[%emt 0:01:15]} Nb5 {[%emt 0:12:24]} 15. Qb2 {[%emt 0:15:25]} Qe8 {[%emt 0:02:32]} 16. Nd3 {[%emt 0:05:29]} Na6 {[%emt 0:01:19]} 17. Nc5 {[%emt 0:00:27]} Bxc5 {[%emt 0:02:34]} 18. dxc5 {[%emt 0:00:02]} e5 {[%emt 0:01:04]} 19. Nd2 {[%emt 0:03:46]} Rd8 {[%emt 0:02:33]} 20. Bf1 {[%emt 0:01:16]} Kh8 {[%emt 0:09:55]} 21. Nc4 {[%emt 0:01:44]} f6 {[%emt 0:01:53]} 22. Nd6 {[%emt 0:01:22]} Nxd6 {[%emt 0:02:41]} 23. cxd6 {[%emt 0:02:13]} f5 {[%emt 0:02:19]} 24. exf5 {[%emt 0:12:06]} Rxf5 {[%emt 0:00:51]} 25. Bxa7 {[%emt 0:05:39]} c5 {[%emt 0:09:20]} 26. Bxa6 {[%emt 0:01:53]} Bxa6 {[%emt 0:00:02]} 27. Rxc5 {[%emt 0:02:42]} Bb7 {[%emt 0:11:00]} 28. Re1 {[%emt 0:01:50]} Qh5 {[%emt 0:01:11]} 29. Rcxe5 {[%emt 0:01:08]} Qf3 {[%emt 0:02:22]} 30. Kf1 {[%emt 0:00:00]} Ba6+ {[%emt 0:11:06]} 31. Kg1 {[%emt 0:00:00]} Bb7 {[%emt 0:00:17]} 32. Kf1 {[%emt 0:00:00]} Ba6+ {[%emt 0:04:23]} 33. Kg1 {[%emt 0:00:00]} Bb7 {[%emt 0:00:37]} 1/2-1/2